fUST/lending_fUST_20240218
["ID","MTS","AMOUNT","RATE_DAILY","PERIOD"]
[314332833,1708191039396,-950.21,0.00027671,2]
[314332835,1708191039406,-706.68,0.00027671,2]
[314332837,1708191039415,-500.0,0.00027671,2]
[314332839,1708191039425,-5300.38,0.00027671,2]
[314332841,1708191039435,-500.0,0.00027671,2]
[314332843,1708191039445,-29680.33152701,0.00027672,5]
[314332845,1708191039456,-500.0,0.00027945,2]
[314332847,1708191039466,-500.0,0.00027945,2]
[314332848,1708191039479,-500.0,0.00027945,2]
[314332850,1708191039491,-1476.27,0.00027945,2]
[314332852,1708191039501,-767.68,0.00027945,2]
[314332855,1708191039512,-493.00244291,0.00027945,2]
[314332857,1708191039521,-830.12,0.00027945,2]
[314332859,1708191039531,-500.0,0.00027945,2]
[314332861,1708191039541,-500.0,0.00027945,2]
[314332863,1708191039552,-500.0,0.00027945,2]
[314332864,1708191039562,-619.45,0.00027945,2]
[314332866,1708191039571,-500.0,0.00027945,2]
[314332868,1708191039580,-5283.92,0.00027945,2]
[314332870,1708191039590,-8527.23,0.00027945,2]
[314332873,1708191039599,-500.0,0.00027945,2]
[314332875,1708191039608,-4285.07,0.00027945,2]
[314332877,1708191039617,-223.7581717,0.00027945,2]
[314332879,1708191039626,-500.0,0.00027945,2]
[314332881,1708191039635,-586.55,0.00027945,2]
[314332883,1708191039644,-554.88,0.00027945,2]
[314332885,1708191039653,-500.0,0.00027945,2]
[314332887,1708191039662,-653.18,0.00027945,2]
[314332889,1708191039672,-500.0,0.00027945,2]
[314332891,1708191039681,-500.0,0.00027945,2]
[314332892,1708191039690,-1188.87,0.00027945,2]
[314332894,1708191039700,-500.0,0.00027945,2]
[314332896,1708191039709,-3874.89,0.00027945,2]
[314332898,1708191039718,-1294.56,0.00027945,2]
[314332900,1708191039729,-3197.54,0.00027945,2]
[314332902,1708191039738,-567.14,0.00027945,2]
[314332904,1708191039748,-1119.63,0.00027945,2]
[314332906,1708191039757,-6698.89,0.00027945,2]
[314332908,1708191039766,-611.42,0.00027945,2]
[314332910,1708191039775,-1073.35,0.00027945,2]
[314332912,1708191039784,-500.0,0.00027945,2]
[314332914,1708191039793,-776.71,0.00027945,2]
[314332916,1708191039802,-500.0,0.00027945,2]
[314332918,1708191039812,-825.18,0.00027945,2]
[314332920,1708191039821,-767.15,0.00027945,2]
[314332922,1708191039830,-950.21,0.00027945,2]
[314332924,1708191039839,-706.68,0.00027945,2]
[314332926,1708191039848,-500.0,0.00027945,2]
[314332928,1708191039858,-5300.38,0.00027945,2]
[314332930,1708191039867,-500.0,0.00027945,2]
[314332932,1708191039876,-300.0,0.00028163,2]
[314332934,1708191039885,-500.0,0.00028219,2]
[314332936,1708191039894,-500.0,0.00028219,2]
[314332938,1708191039903,-500.0,0.00028219,2]
[314332940,1708191039912,-1476.27,0.00028219,2]
[314332942,1708191039921,-767.68,0.00028219,2]
[314332944,1708191039930,-830.12,0.00028219,2]
[314332945,1708191039939,-500.0,0.00028219,2]
[314332947,1708191039948,-500.0,0.00028219,2]
[314332958,1708191040034,-500.0,0.00028219,2]
[314332960,1708191040043,-619.45,0.00028219,2]
[314332962,1708191040052,-500.0,0.00028219,2]
[314332963,1708191040062,-5283.92,0.00028219,2]
[314332965,1708191040071,-8527.23,0.00028219,2]
[314332967,1708191040080,-539.16,0.00028219,2]
[314332969,1708191040089,-4285.07,0.00028219,2]
[314332971,1708191040098,-500.0,0.00028219,2]
[314332973,1708191040107,-586.55,0.00028219,2]
[314332976,1708191040124,-554.88,0.00028219,2]
[314332978,1708191040136,-500.0,0.00028219,2]
[314332980,1708191040146,-653.18,0.00028219,2]
[314332983,1708191040156,-500.0,0.00028219,2]
[314332985,1708191040166,-643.24,0.00028219,2]
[314332987,1708191040176,-1188.87,0.00028219,2]
[314332989,1708191040186,-500.0,0.00028219,2]
[314332991,1708191040195,-3874.89,0.00028219,2]
[314332993,1708191040204,-1294.56,0.00028219,2]
[314332995,1708191040213,-3197.54,0.00028219,2]
[314332997,1708191040223,-567.14,0.00028219,2]
[314332999,1708191040234,-1119.63,0.00028219,2]
[314333001,1708191040244,-6698.89,0.00028219,2]
[314333004,1708191040253,-611.42,0.00028219,2]
[314333007,1708191040263,-1073.35,0.00028219,2]
[314333009,1708191040273,-500.0,0.00028219,2]
[314333011,1708191040282,-776.71,0.00028219,2]
[314333013,1708191040292,-500.0,0.00028219,2]
[314333015,1708191040301,-825.18,0.00028219,2]
[314333017,1708191040311,-767.15,0.00028219,2]
[314333019,1708191040320,-950.21,0.00028219,2]
[314333021,1708191040329,-706.68,0.00028219,2]
[314333023,1708191040339,-500.0,0.00028219,2]
[314333025,1708191040348,-5300.38,0.00028219,2]
[314333027,1708191040358,-500.0,0.00028493,2]
[314333029,1708191040367,-500.0,0.00028493,2]
[314333031,1708191040376,-500.0,0.00028493,2]
[314333033,1708191040386,-1476.27,0.00028493,2]
[314333035,1708191040395,-767.68,0.00028493,2]
[314333037,1708191040405,-830.12,0.00028493,2]
[314333039,1708191040414,-500.0,0.00028493,2]
[314333041,1708191040424,-500.0,0.00028493,2]
[314333043,1708191040434,-444.8,0.00028493,2]
[314333045,1708191040443,-619.45,0.00028493,2]
[314333047,1708191040453,-500.0,0.00028493,2]
[314333049,1708191040467,-5283.92,0.00028493,2]
[314333051,1708191040477,-8527.23,0.00028493,2]
[314333053,1708191040486,-4285.07,0.00028493,2]
[314333056,1708191040498,-586.55,0.00028493,2]
[314333058,1708191040508,-554.88,0.00028493,2]
[314333060,1708191040517,-500.0,0.00028493,2]
[314333062,1708191040526,-653.18,0.00028493,2]
[314333064,1708191040537,-500.0,0.00028493,2]
[314333066,1708191040548,-1188.87,0.00028493,2]
[314333068,1708191040557,-500.0,0.00028493,2]
[314333070,1708191040566,-3874.89,0.00028493,2]
[314333072,1708191040575,-1294.56,0.00028493,2]
[314333074,1708191040585,-3197.54,0.00028493,2]
[314333076,1708191040594,-1119.63,0.00028493,2]
[314333078,1708191040603,-567.14,0.00028493,2]
[314333080,1708191040613,-6698.89,0.00028493,2]
[314333082,1708191040622,-611.42,0.00028493,2]
[314333084,1708191040633,-1073.35,0.00028493,2]
[314333086,1708191040642,-500.0,0.00028493,2]
[314333088,1708191040651,-776.71,0.00028493,2]
[314333090,1708191040660,-500.0,0.00028493,2]
[314333092,1708191040669,-825.18,0.00028493,2]
[314333094,1708191040678,-767.15,0.00028493,2]
[314333096,1708191040687,-950.21,0.00028493,2]
[314333098,1708191040696,-706.68,0.00028493,2]
[314333100,1708191040706,-500.0,0.00028493,2]
[314333102,1708191040715,-5300.38,0.00028493,2]
[314333104,1708191040724,-300.0,0.00028656,2]
[314333106,1708191040734,-500.0,0.00028673,2]
[314333108,1708191040743,-344.44,0.00028757,3]
[314333110,1708191040752,-500.0,0.00028767,2]
[314333112,1708191040761,-500.0,0.00028767,2]
[314333113,1708191040770,-500.0,0.00028767,2]
[314333115,1708191040779,-1476.27,0.00028767,2]
[314333117,1708191040788,-767.68,0.00028767,2]
[314333119,1708191040797,-830.12,0.00028767,2]
[314333121,1708191040806,-266.85349977,0.00028767,2]
[314333123,1708191040816,-606.19323371,0.00028767,2]
[314333125,1708191040825,-619.45,0.00028767,2]
[314333127,1708191040834,-500.0,0.00028767,2]
[314333129,1708191040843,-5283.92,0.00028767,2]
[314333131,1708191040852,-8527.23,0.00028767,2]
[314333133,1708191040861,-4285.07,0.00028767,2]
[314333135,1708191040871,-586.55,0.00028767,2]
[314333136,1708191040880,-554.88,0.00028767,2]
[314333137,1708191040889,-500.0,0.00028767,2]
[314333138,1708191040898,-653.18,0.00028767,2]
[314333139,1708191040908,-500.0,0.00028767,2]
[314333140,1708191040917,-1188.87,0.00028767,2]
[314333141,1708191040925,-500.0,0.00028767,2]
[314333142,1708191040935,-3874.89,0.00028767,2]
[314333143,1708191040944,-1294.56,0.00028767,2]
[314333144,1708191040953,-3197.54,0.00028767,2]
[314333145,1708191040961,-1119.63,0.00028767,2]
[314333146,1708191040970,-567.14,0.00028767,2]
[314333147,1708191040979,-6698.89,0.00028767,2]
[314333148,1708191040988,-611.42,0.00028767,2]
[314333149,1708191040997,-1073.35,0.00028767,2]
[314333150,1708191041006,-500.0,0.00028767,2]
[314333151,1708191041014,-776.71,0.00028767,2]
[314333152,1708191041023,-500.0,0.00028767,2]
[314333153,1708191041032,-825.18,0.00028767,2]
[314333154,1708191041041,-767.15,0.00028767,2]
[314333155,1708191041050,-950.21,0.00028767,2]
[314333157,1708191041059,-706.68,0.00028767,2]
[314333159,1708191041068,-500.0,0.00028767,2]
[314333161,1708191041078,-5300.38,0.00028767,2]
[314333163,1708191041087,-200.3193593,0.00028767,2]
[314333165,1708191041096,-200.3193593,0.00028767,2]
[314333167,1708191041104,-200.3193593,0.00028767,2]
[314333169,1708191041114,-200.3193593,0.00028767,2]
[314333171,1708191041123,-200.3193593,0.00028767,2]
[314333173,1708191041131,-622.8098518,0.00028796,2]
[314333175,1708191041140,-1000.0,0.00029,29]
[314333177,1708191041150,-500.0,0.00029041,2]
[314333179,1708191041158,-500.0,0.00029041,2]
[314333181,1708191041168,-500.0,0.00029041,2]
[314333183,1708191041176,-1476.27,0.00029041,2]
[314333185,1708191041185,-767.68,0.00029041,2]
[314333187,1708191041194,-830.12,0.00029041,2]
[314333189,1708191041203,-619.45,0.00029041,2]
[314333191,1708191041211,-500.0,0.00029041,2]
[314333193,1708191041221,-5283.92,0.00029041,2]
[314333195,1708191041230,-8527.23,0.00029041,2]
[314333197,1708191041239,-4285.07,0.00029041,2]
[314333199,1708191041248,-586.55,0.00029041,2]
[314333201,1708191041257,-554.88,0.00029041,2]
[314333203,1708191041266,-500.0,0.00029041,2]
[314333205,1708191041275,-653.18,0.00029041,2]
[314333206,1708191041284,-500.0,0.00029041,2]
[314333209,1708191041293,-1188.87,0.00029041,2]
[314333210,1708191041302,-500.0,0.00029041,2]
[314333213,1708191041311,-3874.89,0.00029041,2]
[314333215,1708191041322,-1294.56,0.00029041,2]
[314333217,1708191041331,-3197.54,0.00029041,2]
[314333219,1708191041340,-1119.63,0.00029041,2]
[314333221,1708191041349,-567.14,0.00029041,2]
[314333222,1708191041358,-6698.89,0.00029041,2]
[314333225,1708191041367,-611.42,0.00029041,2]
[314333227,1708191041377,-1073.35,0.00029041,2]
[314333229,1708191041387,-500.0,0.00029041,2]
[314333231,1708191041396,-776.71,0.00029041,2]
[314333233,1708191041405,-500.0,0.00029041,2]
[314333235,1708191041414,-825.18,0.00029041,2]
[314333237,1708191041423,-767.15,0.00029041,2]
[314333239,1708191041432,-950.21,0.00029041,2]
[314333240,1708191041442,-706.68,0.00029041,2]
[314333242,1708191041451,-500.0,0.00029041,2]
[314333244,1708191041461,-5300.38,0.00029041,2]
[314333246,1708191041474,-300.0,0.00029149,2]
[314333249,1708191041485,-160.24275126,0.00029315,3]
[314333251,1708191041494,-500.0,0.00029315,2]
[314333253,1708191041503,-500.0,0.00029315,2]
[314333255,1708191041514,-500.0,0.00029315,2]
[314333257,1708191041523,-1476.27,0.00029315,2]
[314333259,1708191041535,-767.68,0.00029315,2]
[314333261,1708191041546,-830.12,0.00029315,2]
[314333263,1708191041555,-619.45,0.00029315,2]
[314333265,1708191041563,-182.64307601,0.00029315,2]
[314333267,1708191041573,-5283.92,0.00029315,2]
[314333269,1708191041582,-8527.23,0.00029315,2]
[314333271,1708191041591,-4285.07,0.00029315,2]
[314333273,1708191041601,-586.55,0.00029315,2]
[314333275,1708191041610,-554.88,0.00029315,2]
[314333277,1708191041619,-500.0,0.00029315,2]
[314333279,1708191041628,-653.18,0.00029315,2]
[314333281,1708191041637,-500.0,0.00029315,2]
[314333283,1708191041646,-1188.87,0.00029315,2]
[314333285,1708191041655,-500.0,0.00029315,2]
[314333287,1708191041664,-3874.89,0.00029315,2]
[314333289,1708191041674,-1294.56,0.00029315,2]
[314333291,1708191041683,-3197.54,0.00029315,2]
[314333293,1708191041692,-1119.63,0.00029315,2]
[314333295,1708191041701,-567.14,0.00029315,2]
[314333297,1708191041710,-6698.89,0.00029315,2]
[314333299,1708191041719,-611.42,0.00029315,2]
[314333301,1708191041728,-1073.35,0.00029315,2]
[314333303,1708191041737,-500.0,0.00029315,2]
[314333305,1708191041746,-776.71,0.00029315,2]
[314333307,1708191041756,-825.18,0.00029315,2]
[314333318,1708191041838,-500.0,0.00029315,2]
[314333320,1708191041849,-767.15,0.00029315,2]
[314333322,1708191041857,-950.21,0.00029315,2]
[314333324,1708191041866,-706.68,0.00029315,2]
[314333326,1708191041875,-500.0,0.00029315,2]
[314333327,1708191041884,-5300.38,0.00029315,2]
[314333329,1708191041893,-155.00930056,0.00029588,2]
[314333331,1708191041902,-500.0,0.00029589,2]
[314333333,1708191041911,-500.0,0.00029589,2]
[314333335,1708191041920,-500.0,0.00029589,2]
[314333337,1708191041930,-1476.27,0.00029589,2]
[314333339,1708191041938,-767.68,0.00029589,2]
[314333341,1708191041947,-830.12,0.00029589,2]
[314333343,1708191041956,-619.45,0.00029589,2]
[314333345,1708191041965,-5283.92,0.00029589,2]
[314333347,1708191041974,-8527.23,0.00029589,2]
[314333349,1708191041984,-4285.07,0.00029589,2]
[314333351,1708191041992,-586.55,0.00029589,2]
[314333353,1708191042001,-554.88,0.00029589,2]
[314333355,1708191042010,-500.0,0.00029589,2]
[314333357,1708191042019,-653.18,0.00029589,2]
[314333359,1708191042029,-500.0,0.00029589,2]
[314333361,1708191042038,-1188.87,0.00029589,2]
[314333363,1708191042048,-500.0,0.00029589,2]
[314333365,1708191042057,-3874.89,0.00029589,2]
[314333367,1708191042066,-1294.56,0.00029589,2]
[314333369,1708191042075,-3197.54,0.00029589,2]
[314333372,1708191042085,-1119.63,0.00029589,2]
[314333374,1708191042094,-567.14,0.00029589,2]
[314333375,1708191042104,-6698.89,0.00029589,2]
[314333377,1708191042113,-151.0,0.00029589,2]
[314333380,1708191042122,-611.42,0.00029589,2]
[314333382,1708191042132,-1073.35,0.00029589,2]
[314333383,1708191042141,-500.0,0.00029589,2]
[314333386,1708191042150,-776.71,0.00029589,2]
[314333388,1708191042161,-825.18,0.00029589,2]
[314333390,1708191042170,-500.0,0.00029589,2]
[314333391,1708191042179,-767.15,0.00029589,2]
[314333393,1708191042189,-151.0,0.00029589,2]
[314333395,1708191042198,-950.21,0.00029589,2]
[314333398,1708191042208,-151.0,0.00029589,2]
[314333400,1708191042217,-706.68,0.00029589,2]
[314333402,1708191042228,-500.0,0.00029589,2]
[314333404,1708191042237,-5300.38,0.00029589,2]
[314333406,1708191042246,-200.3193593,0.00029589,2]
[314333407,1708191042255,-200.3193593,0.00029589,2]
[314333409,1708191042265,-400.460634,0.00029589,2]
[314333411,1708191042274,-306.0,0.00029589,2]
[314333414,1708191042283,-300.0,0.00029641,2]
[314333415,1708191042292,-1744.21999593,0.0002974,2]
[314333418,1708191042302,-80297.0,0.000298,2]
[314333420,1708191042312,-510.31723071,0.0002984,2]
[314333422,1708191042321,-524.47347088,0.00029862,2]
[314333424,1708191042330,-859.78469657,0.00029863,5]
[314333425,1708191042338,-840.80008756,0.00029863,7]
[314333427,1708191042347,-500.0,0.00029863,2]
[314333429,1708191042356,-500.0,0.00029863,2]
[314333431,1708191042365,-500.0,0.00029863,2]
[314333433,1708191042374,-1476.27,0.00029863,2]
[314333435,1708191042384,-767.68,0.00029863,2]
[314333437,1708191042393,-830.12,0.00029863,2]
[314333439,1708191042402,-619.45,0.00029863,2]
[314333442,1708191042411,-5283.92,0.00029863,2]
[314333443,1708191042420,-8527.23,0.00029863,2]
[314333445,1708191042429,-4285.07,0.00029863,2]
[314333447,1708191042438,-586.55,0.00029863,2]
[314333449,1708191042447,-554.88,0.00029863,2]
[314333452,1708191042459,-500.0,0.00029863,2]
[314333454,1708191042470,-653.18,0.00029863,2]
[314333456,1708191042480,-500.0,0.00029863,2]
[314333458,1708191042489,-1188.87,0.00029863,2]
[314333459,1708191042499,-500.0,0.00029863,2]
[314333462,1708191042508,-3874.89,0.00029863,2]
[314333464,1708191042518,-1294.56,0.00029863,2]
[314333466,1708191042527,-3197.54,0.00029863,2]
[314333469,1708191042536,-1119.63,0.00029863,2]
[314333470,1708191042545,-567.14,0.00029863,2]
[314333472,1708191042555,-6698.89,0.00029863,2]
[314333474,1708191042564,-611.42,0.00029863,2]
[314333476,1708191042573,-1073.35,0.00029863,2]
[314333478,1708191042582,-500.0,0.00029863,2]
[314333480,1708191042592,-776.71,0.00029863,2]
[314333482,1708191042601,-825.18,0.00029863,2]
[314333485,1708191042610,-500.0,0.00029863,2]
[314333487,1708191042623,-767.15,0.00029863,2]
[314333489,1708191042637,-950.21,0.00029863,2]
[314333492,1708191042651,-706.68,0.00029863,2]
[314333494,1708191042664,-500.0,0.00029863,2]
[314333497,1708191042676,-5300.38,0.00029863,2]
[314333499,1708191042686,-326.94939536,0.00029898,2]
[314333501,1708191042699,-151.0,0.00029898,2]
[314333503,1708191042713,-151.0,0.00029898,2]
[314333506,1708191042725,-1744.21999591,0.00029953,2]
[314333508,1708191042738,-198.8108005,0.00029988,2]
[314333511,1708191042751,-1302.02,0.00029989,2]
[314333513,1708191042763,-1302.02,0.00029989,2]
[314333515,1708191042775,-1302.02,0.00029989,2]
[314333518,1708191042786,-1302.02,0.00029989,2]
[314333520,1708191042797,-916.02962014,0.00029989,2]
[314333546,1708191043026,-500.0,0.00027397,2]
[314333548,1708191043040,-500.0,0.00027397,2]
[314333550,1708191043052,-1.52718297,0.00027671,2]
[314333567,1708191043195,-358.13169284,0.00027397,2]
[314333569,1708191043208,-141.86830716,0.00027397,2]
[314333572,1708191043219,-498.47281703,0.00027671,2]
[314333574,1708191043229,-382.43044861,0.00027671,2]
[314333576,1708191043242,-117.56955139,0.00027671,2]
[314333578,1708191043252,-500.0,0.00027671,2]
[314333580,1708191043263,-500.0,0.00027945,2]
[314333583,1708191043273,-500.0,0.00027945,2]
[314333585,1708191043284,-500.0,0.00027945,2]
[314333587,1708191043294,-155.00775039,0.00028162,2]
[314333589,1708191043305,-500.0,0.00028219,2]
[314333591,1708191043315,-215.85,0.00028219,2]
[314333593,1708191043326,-500.0,0.00028493,2]
[314333595,1708191043337,-500.0,0.00028767,2]
[314333598,1708191043349,-500.0,0.00029041,2]
[314333600,1708191043359,-500.0,0.00029315,2]
[314333602,1708191043370,-500.0,0.00029589,2]
[314333604,1708191043381,-385.99037986,0.00029989,2]
[314333606,1708191043391,-1302.02,0.00029989,2]
[314333608,1708191043403,-1302.02,0.00029989,2]
[314333611,1708191043413,-986.81469332,0.00029989,2]
[314333790,1708191046190,-5429.86,0.00027397,2]
[314333792,1708191046199,-5429.86,0.00027671,2]
[314333794,1708191046209,-2600.84051513,0.00027945,2]
[314333807,1708191046322,-2829.01948487,0.00027945,2]
[314333810,1708191046336,-500.0,0.00028219,2]
[314333812,1708191046345,-5429.86,0.00028219,2]
[314333813,1708191046355,-500.0,0.00028493,2]
[314333814,1708191046364,-5429.86,0.00028493,2]
[314333815,1708191046374,-500.0,0.00028767,2]
[314333816,1708191046383,-5283.26051513,0.00028767,2]
[314333872,1708191483136,158.937567,0.00027397,120]
[314333873,1708191949434,158.937567,0.00027397,120]
[314333891,1708192235753,-250.0,0.00021641,2]
[314333892,1708192235763,-2690.766208,0.0002193,2]
[314333893,1708192235775,-309.233792,0.0002193,2]
[314333894,1708192235784,-189.97024141,0.00022532,2]
[314333895,1708192235794,-404.02792007,0.00022533,2]
[314333896,1708192235806,-742.80892487,0.00022535,2]
[314333897,1708192235818,-24900.0,0.00022538,2]
[314333899,1708192235827,-3484.2675263,0.00022685,2]
[314333900,1708192235837,-622.302211,0.00022913,2]
[314333901,1708192235847,-3009.246438,0.00024001,2]
[314333902,1708192235856,-166.75633,0.00024658,2]
[314333903,1708192235866,-246.41998313,0.00024842,2]
[314333904,1708192235876,-7715.52545366,0.00025,3]
[314333905,1708192235886,-186.23909532,0.00025415,2]
[314333906,1708192235895,-295.174445,0.00025515,2]
[314333907,1708192235905,-157.515158,0.00025515,2]
[314333908,1708192235914,-166.75633,0.00025635,2]
[314333909,1708192235924,-295.174445,0.00025834,2]
[314333910,1708192235933,-157.515158,0.00025834,2]
[314333911,1708192235942,-157.515158,0.00026153,2]
[314333912,1708192235952,-295.174445,0.00026153,2]
[314333913,1708192235961,-160.88802508,0.00026283,2]
[314333914,1708192235970,-2716.63007927,0.00026383,3]
[314333915,1708192235982,-2832.04687078,0.00026383,3]
[314333932,1708192238397,-286.39335264,0.0002164,2]
[314333934,1708192238407,-1096.48665091,0.00026383,3]
[314333936,1708192238416,-588.56006129,0.00026383,3]
[314333938,1708192238425,-3953.16174501,0.00026383,3]
[314333940,1708192238434,-295.174445,0.00026472,2]
[314333942,1708192238443,-157.515158,0.00026472,2]
[314333944,1708192238452,-166.75633,0.00026613,2]
[314333946,1708192238462,-295.174445,0.00026791,2]
[314333948,1708192238472,-157.515158,0.00026791,2]
[314333950,1708192238482,-154.92253873,0.0002726,2]
[314333952,1708192238491,-185.18,0.00027387,3]
[314333954,1708192238500,-555.56,0.00027387,3]
[314333956,1708192238509,-2540.02,0.00027387,3]
[314333958,1708192238518,-2116.68,0.00027387,3]
[314333960,1708192238528,-1763.9,0.00027387,3]
[314333962,1708192238537,-1469.92,0.00027387,3]
[314333964,1708192238546,-500.0,0.00027397,2]
[314333966,1708192238555,-500.0,0.00027397,2]
[314333968,1708192238564,-1280.88,0.00027397,2]
[314333970,1708192238574,-500.0,0.00027397,2]
[314333972,1708192238583,-500.0,0.00027397,2]
[314333974,1708192238592,-500.0,0.00027397,2]
[314333976,1708192238601,-500.0,0.00027397,2]
[314333979,1708192238611,-500.0,0.00027397,2]
[314333980,1708192238620,-500.0,0.00027397,2]
[314333982,1708192238630,-751.69,0.00027397,2]
[314333984,1708192238639,-754.84,0.00027397,2]
[314333986,1708192238648,-500.0,0.00027397,2]
[314333988,1708192238659,-500.0,0.00027397,2]
[314333991,1708192238670,-500.0,0.00027397,2]
[314333993,1708192238680,-500.0,0.00027397,2]
[314333994,1708192238691,-626.1,0.00027397,2]
[314333996,1708192238701,-500.0,0.00027397,2]
[314333999,1708192238711,-500.0,0.00027397,2]
[314334001,1708192238721,-559.23,0.00027397,2]
[314334003,1708192238730,-500.0,0.00027397,2]
[314334004,1708192238739,-5005.92,0.00027397,2]
[314334006,1708192238748,-500.0,0.00027397,2]
[314334008,1708192238757,-6665.96,0.00027397,2]
[314334010,1708192238767,-486.24233895,0.00027397,2]
[314334012,1708192238776,-4020.42,0.00027397,2]
[314334014,1708192238786,-1172.35,0.00027397,2]
[314334017,1708192238796,-500.0,0.00027397,2]
[314334018,1708192238809,-500.0,0.00027397,2]
[314334020,1708192238819,-500.0,0.00027397,2]
[314334022,1708192238829,-449.8857457,0.00027397,2]
[314334024,1708192238839,-610.99,0.00027397,2]
[314334027,1708192238849,-500.0,0.00027397,2]
[314334028,1708192238858,-500.0,0.00027397,2]
[314334030,1708192238867,-500.0,0.00027397,2]
[314334033,1708192238877,-680.39,0.00027397,2]
[314334034,1708192238887,-578.0,0.00027397,2]
[314334037,1708192238896,-500.0,0.00027397,2]
[314334038,1708192238905,-4036.34,0.00027397,2]
[314334041,1708192238914,-500.0,0.00027397,2]
[314334043,1708192238924,-3330.77,0.00027397,2]
[314334045,1708192238934,-500.0,0.00027397,2]
[314334047,1708192238943,-7257.13,0.00027397,2]
[314334049,1708192238952,-1166.28,0.00027397,2]
[314334050,1708192238962,-507.67,0.00027397,2]
[314334053,1708192238972,-1162.8,0.00027397,2]
[314334055,1708192238981,-1402.44,0.00027397,2]
[314334057,1708192238990,-843.28,0.00027397,2]
[314334058,1708192238999,-639.03,0.00027397,2]
[314334060,1708192239008,-624.83,0.00027397,2]
[314334062,1708192239017,-505.9151369,0.00027397,2]
[314334064,1708192239026,-1000.0,0.00027397,2]
[314334066,1708192239035,-500.0,0.00027397,2]
[314334068,1708192239044,-5756.91,0.00027397,2]
[314334070,1708192239053,-524.53,0.00027397,2]
[314334072,1708192239062,-820.43,0.00027397,2]
[314334074,1708192239071,-906.16,0.00027397,2]
[314334076,1708192239079,-1050.23,0.00027397,2]
[314334078,1708192239088,-500.0,0.00027534,2]
[314334080,1708192239097,-166.75633,0.00027591,2]
[314334082,1708192239106,-500.0,0.00027671,2]
[314334084,1708192239115,-1280.88,0.00027671,2]
[314334086,1708192239124,-500.0,0.00027671,2]
[314334088,1708192239133,-234.66231295,0.00027671,2]
[314334090,1708192239142,-500.0,0.00027671,2]
[314334092,1708192239151,-751.69,0.00027671,2]
[314334094,1708192239161,-754.84,0.00027671,2]
[314334097,1708192239170,-500.0,0.00027671,2]
[314334098,1708192239179,-500.0,0.00027671,2]
[314334101,1708192239189,-500.0,0.00027671,2]
[314334103,1708192239198,-500.0,0.00027671,2]
[314334105,1708192239207,-626.1,0.00027671,2]
[314334106,1708192239216,-500.0,0.00027671,2]
[314334108,1708192239225,-500.0,0.00027671,2]
[314334110,1708192239234,-559.23,0.00027671,2]
[314334112,1708192239243,-500.0,0.00027671,2]
[314334114,1708192239252,-5005.92,0.00027671,2]
[314334117,1708192239262,-6665.96,0.00027671,2]
[314334119,1708192239271,-4020.42,0.00027671,2]
[314334121,1708192239280,-1172.35,0.00027671,2]
[314334123,1708192239289,-500.0,0.00027671,2]
[314334124,1708192239298,-500.0,0.00027671,2]
[314334127,1708192239308,-500.0,0.00027671,2]